[Event "Chess.com Isle of Man Masters"]
[Site "Villa Marina, Douglas, Isle of Man, United Kingdom"]
[Date "2018.10.22"]
[Round "3.24"]
[White "Prithu, Gupta"]
[Black "Adhiban, B."]
[Result "0-1"]
[TimeControl "40 moves in 100 minutes, f.b. 20 moves in 50 minutes f.b. 15 minutes with a 30 second increment from move 0"]
[WhiteElo "2458"]
[BlackElo "2668"]

1. Nf3 {[%clk 01:40:59]} c5 {[%clk 01:40:50]} {[%emt 00:00:10]} 2. c4 {[%clk
01:41:20]} {[%emt 00:00:08]} g6 {[%clk 01:41:16]} {[%emt 00:00:05]} 3. d4
{[%clk 01:40:49]} {[%emt 00:01:01]} cxd4 {[%clk 01:41:41]} {[%emt 00:00:05]} 4.
Nxd4 {[%clk 01:41:14]} {[%emt 00:00:04]} Nc6 {[%clk 01:42:06]} {[%emt
00:00:06]} 5. e4 {[%clk 01:41:39]} {[%emt 00:00:05]} Nf6 {[%clk 01:41:55]}
{[%emt 00:00:41]} 6. Nc3 {[%clk 01:42:01]} {[%emt 00:00:08]} Nxd4 {[%clk
01:42:20]} {[%emt 00:00:06]} 7. Qxd4 {[%clk 01:42:25]} {[%emt 00:00:05]} d6
{[%clk 01:42:47]} {[%emt 00:00:03]} 8. Be2 {[%clk 01:41:58]} {[%emt 00:00:57]}
Bg7 {[%clk 01:43:11]} {[%emt 00:00:06]} 9. Be3 {[%clk 01:41:59]} {[%emt
00:00:28]} O-O {[%clk 01:43:10]} {[%emt 00:00:31]} 10. Qd2 {[%clk 01:42:22]}
{[%emt 00:00:08]} a5 {[%clk 01:42:52]} {[%emt 00:00:48]} 11. f3 {[%clk
01:35:48]} {[%emt 00:07:02]} a4 {[%clk 01:42:58]} {[%emt 00:00:25]} 12. Rb1
{[%clk 01:31:33]} {[%emt 00:04:45]} Qa5 {[%clk 01:42:43]} {[%emt 00:00:44]} 13.
Nd5 {[%clk 01:29:57]} {[%emt 00:02:06]} Nxd5 {[%clk 01:40:10]} {[%emt
00:03:03]} 14. cxd5 {[%clk 01:30:00]} {[%emt 00:00:27]} Bd7 {[%clk 00:59:55]}
{[%emt 00:40:45]} 15. Qxa5 {[%clk 01:25:13]} {[%emt 00:05:16]} Rxa5 {[%clk
01:00:24]} {[%emt 00:00:02]} 16. Bb6 {[%clk 01:25:24]} {[%emt 00:00:18]} Raa8
{[%clk 01:00:48]} {[%emt 00:00:06]} 17. Kd2 {[%clk 01:25:20]} {[%emt 00:00:34]}
e6 {[%clk 00:57:13]} {[%emt 00:04:05]} 18. Bc4 {[%clk 01:21:53]} {[%emt
00:03:57]} Rfc8 {[%clk 00:56:02]} {[%emt 00:01:41]} 19. dxe6 {[%clk 01:21:08]}
{[%emt 00:01:15]} fxe6 {[%clk 00:40:53]} {[%emt 00:15:39]} 20. Rhc1 {[%clk
01:16:06]} {[%emt 00:05:31]} Kf7 {[%clk 00:40:58]} {[%emt 00:00:26]} 21. b3
{[%clk 01:03:06]} {[%emt 00:13:30]} Rc6 {[%clk 00:36:16]} {[%emt 00:05:12]} 22.
bxa4 {[%clk 01:01:18]} {[%emt 00:02:18]} Rxb6 {[%clk 00:34:47]} {[%emt
00:02:00]} 23. Rxb6 {[%clk 01:01:40]} {[%emt 00:00:07]} Bh6+ {[%clk 00:35:11]}
{[%emt 00:00:06]} 24. Kd1 {[%clk 01:01:39]} {[%emt 00:00:30]} Bxc1 {[%clk
00:35:31]} {[%emt 00:00:11]} 25. Rxb7 {[%clk 00:56:42]} {[%emt 00:05:27]} Ke8
{[%clk 00:35:50]} {[%emt 00:00:11]} 26. Kxc1 {[%clk 00:34:58]} {[%emt
00:22:14]} Rc8 {[%clk 00:35:58]} {[%emt 00:00:22]} 27. Kb2 {[%clk 00:34:26]}
{[%emt 00:01:03]} Rxc4 {[%clk 00:36:12]} {[%emt 00:00:16]} 28. Kb3 {[%clk
00:34:24]} {[%emt 00:00:31]} Rc1 {[%clk 00:29:08]} {[%emt 00:07:34]} 29. Ra7
{[%clk 00:32:24]} {[%emt 00:02:30]} d5 {[%clk 00:27:20]} {[%emt 00:02:18]} 30.
exd5 {[%clk 00:32:10]} {[%emt 00:00:44]} exd5 {[%clk 00:27:49]} {[%emt
00:00:02]} 31. Ra8+ {[%clk 00:32:26]} {[%emt 00:00:14]} Bc8 {[%clk 00:23:56]}
{[%emt 00:04:23]} 32. Ra5 {[%clk 00:31:11]} {[%emt 00:01:44]} d4 {[%clk
00:23:37]} {[%emt 00:00:50]} 33. Re5+ {[%clk 00:31:35]} {[%emt 00:00:05]} Kf7
{[%clk 00:23:54]} {[%emt 00:00:12]} 34. Kb2 {[%clk 00:31:54]} {[%emt 00:00:12]}
Rc4 {[%clk 00:23:52]} {[%emt 00:00:33]} 35. a5 {[%clk 00:31:46]} {[%emt
00:00:38]} Be6 {[%clk 00:19:43]} {[%emt 00:04:38]} 36. a6 {[%clk 00:30:41]}
{[%emt 00:01:35]} Ra4 {[%clk 00:19:41]} {[%emt 00:00:31]} 0-1

[Event "Chess.com Isle of Man Masters"]
[Site "Villa Marina, Douglas, Isle of Man, United Kingdom"]
[Date "2018.10.22"]
[Round "3.25"]
[White "Kovalev, Vladislav"]
[Black "Williams, Simon K"]
[Result "1-0"]
[TimeControl "40 moves in 100 minutes, f.b. 20 moves in 50 minutes f.b. 15 minutes with a 30 second increment from move 0"]
[WhiteElo "2664"]
[BlackElo "2457"]

1. e4 {[%clk 01:40:58]} {[%emt 00:00:01]} g6 {[%clk 01:36:02]} {[%emt
00:04:59]} 2. d4 {[%clk 01:41:05]} {[%emt 00:00:23]} Bg7 {[%clk 01:36:14]}
{[%emt 00:00:17]} 3. Nc3 {[%clk 01:40:54]} {[%emt 00:00:41]} d6 {[%clk
01:36:26]} {[%emt 00:00:18]} 4. Be3 {[%clk 01:39:52]} {[%emt 00:01:32]} a6
{[%clk 01:36:16]} {[%emt 00:00:40]} 5. Nf3 {[%clk 01:30:33]} {[%emt 00:09:49]}
b5 {[%clk 01:34:00]} {[%emt 00:03:16]} 6. a4 {[%clk 01:25:09]} {[%emt
00:06:24]} b4 {[%clk 01:33:22]} {[%emt 00:01:08]} 7. Nd5 {[%clk 01:25:19]}
{[%emt 00:00:20]} Nc6 {[%clk 01:28:54]} {[%emt 00:04:57]} 8. Qd2 {[%clk
01:10:10]} {[%emt 00:15:39]} Rb8 {[%clk 01:23:38]} {[%emt 00:05:47]} 9. h3
{[%emt 00:04:51]} e6 {[%clk 01:20:17]} {[%emt 00:03:36]} 10. Nf4 {[%clk
01:06:31]} b3 {[%clk 00:58:12]} {[%emt 00:22:38]} 11. c3 {[%emt 00:02:50]} Nge7
{[%clk 00:58:12]} 12. d5 {[%clk 00:58:33]} {[%emt 00:06:38]} exd5 {[%clk
00:55:08]} {[%emt 00:03:33]} 13. Nxd5 {[%clk 00:58:27]} {[%emt 00:00:36]} O-O
{[%clk 00:52:31]} {[%emt 00:03:07]} 14. Bg5 {[%clk 00:51:04]} {[%emt 00:07:54]}
f6 {[%clk 00:50:05]} {[%emt 00:02:55]} 15. Bh4 {[%clk 00:51:24]} {[%emt
00:00:10]} Kh8 {[%clk 00:44:16]} {[%emt 00:06:19]} 16. Be2 {[%clk 00:47:21]}
{[%emt 00:04:33]} Nxd5 {[%clk 00:38:28]} {[%emt 00:06:19]} 17. exd5 {[%clk
00:47:27]} {[%emt 00:00:24]} Ne7 {[%clk 00:37:27]} {[%emt 00:01:31]} 18. Nd4
{[%clk 00:39:17]} {[%emt 00:08:40]} Nf5 {[%clk 00:26:06]} {[%emt 00:11:50]} 19.
Nxf5 {[%clk 00:32:07]} {[%emt 00:07:41]} Bxf5 {[%clk 00:26:31]} {[%emt
00:00:05]} 20. O-O {[%clk 00:32:27]} {[%emt 00:00:10]} a5 {[%clk 00:25:32]}
{[%emt 00:01:29]} 21. Bb5 {[%clk 00:32:06]} {[%emt 00:00:50]} Bd7 {[%clk
00:25:20]} {[%emt 00:00:43]} 22. c4 {[%clk 00:30:25]} {[%emt 00:02:11]} g5
{[%clk 00:25:30]} {[%emt 00:00:19]} 23. Bg3 {[%clk 00:30:41]} {[%emt 00:00:14]}
f5 {[%clk 00:25:41]} {[%emt 00:00:19]} 24. f4 {[%clk 00:29:58]} {[%emt
00:01:14]} g4 {[%clk 00:25:59]} {[%emt 00:00:12]} 25. Ra3 {[%clk 00:29:17]}
{[%emt 00:01:11]} c6 {[%clk 00:20:09]} {[%emt 00:06:19]} 26. dxc6 {[%clk
00:28:55]} {[%emt 00:00:52]} Bxc6 {[%clk 00:20:27]} {[%emt 00:00:13]} 27. hxg4
{[%clk 00:26:57]} {[%emt 00:02:27]} fxg4 {[%clk 00:18:35]} {[%emt 00:02:22]} 28.
Rxb3 {[%clk 00:27:10]} {[%emt 00:00:18]} Be4 {[%clk 00:15:41]} {[%emt
00:03:23]} 29. f5 {[%clk 00:19:47]} {[%emt 00:07:53]} Qb6+ {[%clk 00:14:24]}
{[%emt 00:01:47]} 30. Bf2 {[%clk 00:18:14]} {[%emt 00:02:03]} Qb7 {[%clk
00:14:43]} {[%emt 00:00:11]} 31. Bd4 {[%clk 00:16:29]} {[%emt 00:02:14]} Bxf5
{[%clk 00:14:46]} {[%emt 00:00:28]} 32. Re3 {[%clk 00:13:01]} {[%emt 00:03:59]}
Rbd8 {[%clk 00:12:04]} {[%emt 00:03:12]} 33. b3 {[%clk 00:11:46]} {[%emt
00:01:45]} Bxd4 {[%clk 00:11:10]} {[%emt 00:01:24]} 34. Qxd4+ {[%clk 00:12:15]}
Qg7 {[%clk 00:11:33]} {[%emt 00:00:06]} 35. Qd2 {[%clk 00:10:26]} {[%emt
00:02:19]} Qa7 {[%clk 00:04:36]} {[%emt 00:07:27]} 36. Kh2 {[%clk 00:07:31]}
{[%emt 00:03:25]} Rf6 {[%clk 00:00:56]} {[%emt 00:04:10]} 37. Qc3 {[%clk
00:05:15]} {[%emt 00:02:45]} Qg7 {[%clk 00:00:59]} {[%emt 00:00:27]} 38. Kg1
{[%clk 00:05:24]} {[%emt 00:00:22]} Rdf8 {[%clk 00:00:44]} {[%emt 00:00:45]} 39.
Rfe1 {[%clk 00:03:40]} {[%emt 00:02:14]} Be4 {[%clk 00:00:34]} {[%emt
00:00:40]} 40. Rg3 {[%clk 00:00:50]} {[%emt 00:03:20]} Rf4 {[%clk 00:00:32]}
{[%emt 00:00:31]} 41. Rd1 {[%clk 00:35:29]} {[%emt 00:15:52]} Qxc3 {[%clk
00:21:17]} {[%emt 00:29:45]} 42. Rxc3 {[%clk 00:35:56]} {[%emt 00:00:02]} R4f6
{[%clk 00:19:48]} {[%emt 00:01:59]} 43. Rd4 {[%clk 00:30:09]} {[%emt 00:06:17]}
Bf5 {[%clk 00:19:07]} {[%emt 00:01:11]} 44. Kh2 {[%clk 00:25:44]} {[%emt
00:04:54]} Kg7 {[%clk 00:19:04]} {[%emt 00:00:34]} 45. Kg3 {[%clk 00:25:58]}
{[%emt 00:00:16]} Kg6 {[%clk 00:19:14]} {[%emt 00:00:19]} 46. Kh4 {[%clk
00:23:50]} {[%emt 00:02:38]} Rc8 {[%clk 00:17:02]} {[%emt 00:02:42]} 47. Re3
{[%clk 00:23:22]} {[%emt 00:00:58]} Rc5 {[%clk 00:16:28]} {[%emt 00:01:04]} 48.
Re7 {[%clk 00:18:57]} {[%emt 00:04:55]} Kh6 {[%clk 00:15:54]} {[%emt 00:01:04]}
49. Re2 {[%clk 00:14:55]} {[%emt 00:04:33]} Bc8 {[%clk 00:15:01]} {[%emt
00:01:24]} 50. Red2 {[%clk 00:14:13]} {[%emt 00:01:11]} Rh5+ {[%clk 00:11:28]}
{[%emt 00:04:03]} 51. Kg3 {[%clk 00:14:42]} {[%emt 00:00:01]} Re5 {[%clk
00:10:26]} {[%emt 00:01:31]} 52. Rxd6 {[%clk 00:14:18]} {[%emt 00:00:54]} Be6
{[%clk 00:10:44]} {[%emt 00:00:12]} 53. Bd7 {[%clk 00:09:40]} {[%emt 00:05:08]}
Kg5 {[%clk 00:11:09]} {[%emt 00:00:04]} 54. Rxe6 {[%clk 00:09:56]} {[%emt
00:00:15]} Rfxe6 {[%clk 00:11:08]} {[%emt 00:00:30]} 55. Bxe6 {[%clk 00:10:22]}
{[%emt 00:00:04]} Re3+ {[%clk 00:11:26]} {[%emt 00:00:12]} 56. Kf2 {[%clk
00:10:34]} {[%emt 00:00:18]} Rxe6 {[%clk 00:11:51]} {[%emt 00:00:05]} 57. Rd5+
{[%clk 00:08:49]} {[%emt 00:02:16]} Kf4 {[%clk 00:11:24]} {[%emt 00:00:57]} 58.
Rd4+ {[%clk 00:06:08]} {[%emt 00:03:12]} Kf5 {[%clk 00:11:46]} {[%emt
00:00:07]} 59. Rd5+ {[%clk 00:06:22]} {[%emt 00:00:16]} Kf4 {[%clk 00:12:04]}
{[%emt 00:00:12]} 60. Rd4+ {[%clk 00:05:53]} {[%emt 00:01:00]} Kf5 {[%clk
00:12:28]} {[%emt 00:00:06]} 61. c5 {[%clk 00:06:17]} {[%emt 00:00:06]} Rc6
{[%clk 00:10:53]} {[%emt 00:02:05]} 62. b4 {[%clk 00:06:13]} {[%emt 00:00:34]}
axb4 {[%clk 00:11:16]} {[%emt 00:00:07]} 63. Rxb4 {[%clk 00:06:43]} h5 {[%clk
00:11:03]} {[%emt 00:00:43]} 64. g3 {[%emt 00:05:05]} Ke5 {[%clk 00:09:26]}
{[%emt 00:00:39]} 65. Ke3 {[%clk 00:09:10]} {[%emt 00:05:52]} Rc8 {[%clk
00:15:43]} 66. a5 Rxc5 {[%clk 00:03:56]} 67. Ra4 Rc3+ {[%clk 00:03:56]} 68. Kd2
Rc8 {[%clk 00:03:56]} 69. a6 {[%clk 00:08:07]} {[%emt 00:23:29]} Kf5 {[%clk
00:10:52]} 70. a7 {[%clk 00:08:07]} Ra8 {[%clk 00:10:52]} {[%emt 00:00:42]} 71.
Ke3 {[%clk 00:08:19]} Kg5 {[%clk 00:10:28]} {[%emt 00:01:11]} 72. Ra5+ {[%clk
00:08:43]} Kh6 {[%clk 00:09:04]} {[%emt 00:01:59]} 73. Kf4 {[%clk 00:08:41]}
Rf8+ {[%clk 00:09:04]} 74. Rf5 {[%clk 00:08:52]} {[%emt 00:01:30]} Rc8 {[%clk
00:08:38]} {[%emt 00:01:15]} 75. Rf6+ {[%clk 00:09:15]} Kg7 {[%clk 00:08:38]}
{[%emt 00:00:10]} 76. Ra6 {[%clk 00:09:30]} 1-0

[Event "Chess.com Isle of Man Masters"]
[Site "Villa Marina, Douglas, Isle of Man, United Kingdom"]
[Date "2018.10.22"]
[Round "3.26"]
[White "Bellaiche, Anthony"]
[Black "Short, Nigel D"]
[Result "0-1"]
[TimeControl "40 moves in 100 minutes, f.b. 20 moves in 50 minutes f.b. 15 minutes with a 30 second increment from move 0"]
[WhiteElo "2453"]
[BlackElo "2652"]

1. Nf3 {[%clk 01:40:57]} b6 {[%clk 01:40:55]} 2. e4 {[%clk 01:40:57]} Bb7
{[%clk 01:38:57]} {[%emt 48:07:11]} 3. Nc3 {[%clk 01:35:57]} e6 {[%clk
01:39:21]} {[%emt 00:00:26]} 4. d4 {[%clk 01:34:34]} Bb4 {[%clk 01:39:41]}
{[%emt 00:02:02]} 5. Bd3 {[%clk 01:34:56]} Nf6 {[%clk 01:40:03]} {[%emt
00:00:16]} 6. Nd2 {[%clk 01:34:19]} d6 {[%clk 01:34:48]} {[%emt 00:06:53]} 7.
Ncb1 {[%clk 01:29:03]} Bxd2+ {[%clk 01:28:38]} {[%emt 00:12:26]} 8. Nxd2 {[%clk
01:29:25]} e5 {[%clk 01:29:03]} {[%emt 00:00:12]} 9. d5 {[%clk 01:16:57]} c6
{[%clk 01:28:24]} {[%emt 00:14:08]} 10. c4 {[%clk 01:15:59]} Nbd7 {[%clk
01:26:29]} {[%emt 00:03:53]} 11. Nb3 {[%clk 01:12:39]} a5 {[%clk 01:22:56]}
{[%emt 00:07:53]} 12. a4 {[%clk 01:12:26]} O-O {[%clk 01:19:11]} {[%emt
00:04:56]} 13. O-O {[%clk 01:12:47]} Re8 {[%clk 00:52:47]} {[%emt 00:27:06]} 14.
Bg5 {[%clk 01:11:25]} h6 {[%clk 00:53:01]} {[%emt 00:02:07]} 15. Be3 {[%clk
01:08:59]} Nc5 {[%clk 00:37:18]} {[%emt 00:19:09]} 16. Nxc5 {[%clk 01:07:59]}
bxc5 {[%clk 00:37:42]} {[%emt 00:01:37]} 17. Bd2 {[%clk 00:44:57]} cxd5 {[%clk
00:32:22]} 18. exd5 {[%clk 00:44:57]} Bc8 {[%clk 00:32:22]} {[%emt 00:02:24]}
19. Ra3 {[%clk 00:42:59]} Bg4 {[%clk 00:28:54]} {[%emt 00:06:25]} 20. Qc1
{[%emt 00:15:49]} Rb8 {[%clk 00:13:55]} {[%emt 00:00:42]} 21. Bb1 {[%clk
00:41:18]} {[%emt 00:01:25]} Kf8 22. Rg3 {[%emt 00:02:51]} Qd7 {[%clk
00:12:22]} {[%emt 00:00:27]} 23. h3 {[%clk 00:33:44]} {[%emt 00:08:27]} Bf5
{[%clk 00:12:48]} 24. Bxf5 {[%clk 00:33:44]} Qxf5 {[%clk 00:12:48]} {[%emt
00:00:40]} 25. Bxa5 {[%clk 00:33:50]} {[%emt 00:00:42]} Ra8 26. Qe1 {[%clk
00:27:47]} {[%emt 00:05:26]} Nh5 27. Rf3 {[%clk 00:27:50]} {[%emt 00:06:47]}
Nf4 28. Qd2 {[%clk 00:16:08]} {[%emt 00:02:53]} Qg6 {[%clk 00:07:20]} 29. Rg3
{[%clk 00:08:15]} {[%emt 00:17:15]} Qe4 30. b3 {[%emt 00:03:33]} Ne2+ {[%clk
00:07:33]} {[%emt 00:00:09]} 31. Kh2 {[%emt 00:00:06]} Nxg3 {[%clk 00:07:54]}
{[%emt 00:00:07]} 32. fxg3 {[%clk 00:09:06]} {[%emt 00:00:06]} Ra6 {[%clk
00:05:30]} {[%emt 00:02:54]} 33. Rf3 {[%clk 00:07:56]} {[%emt 00:01:40]} Rb8
{[%clk 00:04:30]} {[%emt 00:01:30]} 34. g4 {[%clk 00:01:50]} {[%emt 00:06:36]}
Kg8 {[%clk 00:03:00]} {[%emt 00:01:59]} 35. g5 {[%clk 00:01:44]} {[%emt
00:00:37]} hxg5 {[%clk 00:02:12]} {[%emt 00:01:17]} 36. Bc7 {[%clk 00:01:46]}
{[%emt 00:00:29]} Rc8 {[%clk 00:02:10]} {[%emt 00:00:32]} 37. Qxg5 {[%clk
00:02:04]} {[%emt 00:00:12]} Qg6 {[%clk 00:02:33]} {[%emt 00:00:07]} 38. Qh4
{[%clk 00:01:18]} {[%emt 00:01:17]} f6 {[%clk 00:02:15]} {[%emt 00:00:47]} 0-1

[Event "Chess.com Isle of Man Masters"]
[Site "Villa Marina, Douglas, Isle of Man, United Kingdom"]
[Date "2018.10.22"]
[Round "3.27"]
[White "Paterek, Michal"]
[Black "Parligras, Mircea-Emilian"]
[Result "0-1"]
[TimeControl "40 moves in 100 minutes, f.b. 20 moves in 50 minutes f.b. 15 minutes with a 30 second increment from move 0"]
[WhiteElo "2311"]
[BlackElo "2623"]

1. d4 {[%clk 01:40:50]} {[%emt 00:00:09]} Nf6 {[%clk 01:40:38]} {[%emt
00:00:22]} 2. c4 {[%clk 01:41:06]} {[%emt 00:00:14]} e6 {[%clk 01:40:51]}
{[%emt 00:00:17]} 3. Nc3 {[%clk 01:41:16]} {[%emt 00:00:20]} Bb4 {[%clk
01:40:56]} {[%emt 00:00:24]} 4. e3 {[%clk 01:41:21]} {[%emt 00:00:26]} O-O
{[%clk 01:40:55]} {[%emt 00:00:31]} 5. Nge2 {[%clk 01:40:33]} {[%emt 00:01:18]}
c6 {[%clk 01:39:55]} {[%emt 00:01:30]} 6. a3 {[%clk 01:38:21]} {[%emt
00:02:43]} Ba5 {[%clk 01:40:03]} {[%emt 00:00:21]} 7. c5 {[%clk 01:37:41]}
{[%emt 00:01:10]} d5 {[%clk 01:37:07]} {[%emt 00:03:27]} 8. cxd6 {[%clk
01:37:05]} {[%emt 00:01:06]} Qxd6 {[%clk 01:37:30]} {[%emt 00:00:06]} 9. b4
{[%clk 01:35:02]} {[%emt 00:02:34]} Bc7 {[%clk 01:37:47]} {[%emt 00:00:12]} 10.
Bb2 {[%clk 01:34:17]} {[%emt 00:01:16]} e5 {[%clk 01:27:55]} {[%emt 00:10:22]}
11. dxe5 {[%clk 01:30:18]} {[%emt 00:04:30]} Qxe5 {[%clk 01:23:44]} {[%emt
00:04:41]} 12. Ng3 {[%clk 01:28:09]} {[%emt 00:02:39]} Rd8 {[%clk 00:58:59]}
{[%emt 00:25:16]} 13. Qc2 {[%clk 01:26:31]} {[%emt 00:02:07]} Qg5 {[%clk
00:59:20]} {[%emt 00:00:09]} 14. Bd3 {[%clk 01:22:53]} {[%emt 00:04:08]} Bg4
{[%clk 00:52:11]} {[%emt 00:07:39]} 15. f4 {[%clk 00:55:50]} {[%emt 00:27:33]}
Qh4 {[%clk 00:51:26]} {[%emt 00:01:14]} 16. O-O {[%clk 00:55:12]} {[%emt
00:01:09]} Bb6 {[%clk 00:38:29]} {[%emt 00:13:27]} 17. Rae1 {[%clk 00:54:13]}
{[%emt 00:01:29]} Re8 {[%clk 00:38:54]} {[%emt 00:00:06]} 18. Nce4 {[%clk
00:34:34]} {[%emt 00:20:09]} Nbd7 {[%clk 00:36:53]} {[%emt 00:02:31]} 19. Nxf6+
{[%clk 00:19:30]} {[%emt 00:15:34]} Nxf6 {[%clk 00:37:17]} {[%emt 00:00:06]} 20.
Bxf6 {[%clk 00:19:35]} {[%emt 00:00:25]} Qxf6 {[%clk 00:35:47]} {[%emt
00:02:00]} 21. Bxh7+ {[%clk 00:18:30]} {[%emt 00:01:35]} Kf8 {[%clk 00:36:14]}
{[%emt 00:00:03]} 22. Be4 {[%clk 00:18:09]} {[%emt 00:00:52]} Re7 {[%clk
00:28:03]} {[%emt 00:08:40]} 23. h3 {[%clk 00:18:03]} {[%emt 00:00:35]} Bd7
{[%clk 00:26:35]} {[%emt 00:01:58]} 24. Kh2 {[%clk 00:18:14]} {[%emt 00:00:20]}
Rae8 {[%clk 00:26:52]} {[%emt 00:00:12]} 25. Rf2 {[%clk 00:16:58]} {[%emt
00:01:47]} Qh4 {[%clk 00:26:30]} {[%emt 00:00:52]} 26. Qd3 {[%clk 00:06:05]}
{[%emt 00:11:23]} Rxe4 {[%clk 00:15:44]} {[%emt 00:11:15]} 27. Qxd7 {[%clk
00:05:58]} {[%emt 00:00:37]} Rxe3 {[%clk 00:15:03]} {[%emt 00:01:10]} 28. Rxe3
{[%clk 00:05:13]} {[%emt 00:01:16]} Rxe3 {[%clk 00:14:19]} {[%emt 00:01:13]} 29.
Rf3 {[%clk 00:02:24]} {[%emt 00:03:20]} Rxf3 {[%clk 00:13:46]} {[%emt
00:01:03]} 30. gxf3 {[%clk 00:02:52]} {[%emt 00:00:03]} Qxf4 {[%clk 00:13:27]}
{[%emt 00:00:48]} 31. Kg2 {[%clk 00:02:49]} {[%emt 00:00:33]} Qd4 {[%clk
00:10:18]} {[%emt 00:03:38]} 32. Qc8+ {[%clk 00:02:06]} {[%emt 00:01:14]} Qd8
{[%clk 00:10:38]} {[%emt 00:00:10]} 33. Qxd8+ {[%clk 00:01:31]} {[%emt
00:01:05]} Bxd8 {[%clk 00:11:03]} {[%emt 00:00:05]} 34. Nf5 {[%clk 00:01:47]}
{[%emt 00:00:15]} Bc7 {[%clk 00:10:07]} {[%emt 00:01:25]} 35. Kf1 {[%clk
00:02:07]} {[%emt 00:00:10]} g6 {[%clk 00:10:30]} {[%emt 00:00:07]} 36. Nd4
{[%clk 00:02:26]} {[%emt 00:00:11]} Ke7 {[%clk 00:10:35]} {[%emt 00:00:25]} 37.
Ke2 {[%clk 00:02:50]} {[%emt 00:00:06]} Kd6 {[%clk 00:09:25]} {[%emt 00:01:40]}
38. Kd3 {[%clk 00:03:10]} {[%emt 00:00:10]} Ke5 {[%clk 00:07:18]} {[%emt
00:02:37]} 39. Ne2 {[%clk 00:01:07]} {[%emt 00:02:33]} b5 {[%clk 00:06:09]}
{[%emt 00:01:38]} 40. Nd4 {[%clk 00:01:20]} {[%emt 00:00:17]} Kd5 {[%clk
00:06:33]} {[%emt 00:00:06]} 41. Ne2 {[%clk 00:00:50]} {[%emt 00:01:00]} Be5
{[%clk 00:06:39]} {[%emt 00:00:23]} 42. f4 {[%clk 00:49:18]} {[%emt 00:02:03]}
Bb2 {[%clk 00:55:39]} {[%emt 00:01:29]} 43. Kc2 {[%clk 00:46:40]} {[%emt
00:03:08]} Bg7 {[%clk 00:55:43]} {[%emt 00:00:26]} 44. Kd3 {[%clk 00:47:05]}
{[%emt 00:00:06]} Bf6 {[%clk 00:54:25]} {[%emt 00:01:47]} 45. Ng3 {[%clk
00:44:43]} {[%emt 00:02:52]} Bb2 {[%clk 00:54:08]} {[%emt 00:00:48]} 46. f5
{[%clk 00:44:47]} {[%emt 00:00:26]} g5 {[%clk 00:53:33]} {[%emt 00:01:04]} 47.
Ne4 {[%clk 00:44:04]} {[%emt 00:01:13]} f6 {[%clk 00:53:51]} {[%emt 00:00:12]}
0-1

[Event "Chess.com Isle of Man Masters"]
[Site "Villa Marina, Douglas, Isle of Man, United Kingdom"]
[Date "2018.10.22"]
[Round "3.28"]
[White "Fenil, Shah"]
[Black "Kramnik, Vladimir"]
[Result "0-1"]
[TimeControl "40 moves in 100 minutes, f.b. 20 moves in 50 minutes f.b. 15 minutes with a 30 second increment from move 0"]
[WhiteElo "2411"]
[BlackElo "2779"]

1. d4 {[%clk 01:40:47]} {[%emt 00:00:11]} Nf6 {[%clk 01:40:52]} {[%emt
00:00:09]} 2. Nf3 {[%clk 01:41:01]} {[%emt 00:00:17]} g6 {[%clk 01:41:05]}
{[%emt 00:00:17]} 3. Nbd2 {[%clk 01:40:09]} {[%emt 00:01:21]} Bg7 {[%clk
01:41:16]} {[%emt 00:00:18]} 4. e4 {[%clk 01:39:47]} {[%emt 00:00:53]} d6
{[%clk 01:41:40]} {[%emt 00:00:06]} 5. Bd3 {[%clk 01:39:21]} {[%emt 00:00:56]}
O-O {[%clk 01:42:03]} {[%emt 00:00:06]} 6. O-O {[%clk 01:39:36]} {[%emt
00:00:15]} Nc6 {[%clk 01:40:46]} {[%emt 00:01:47]} 7. Re1 {[%clk 01:36:54]}
{[%emt 00:03:12]} e5 {[%clk 01:40:44]} {[%emt 00:00:32]} 8. c3 {[%clk
01:28:28]} {[%emt 00:08:56]} h6 {[%clk 01:39:57]} {[%emt 00:01:16]} 9. dxe5
{[%clk 01:20:22]} {[%emt 00:08:37]} Nxe5 {[%clk 01:37:12]} {[%emt 00:03:14]} 10.
Nxe5 {[%clk 01:19:31]} {[%emt 00:01:21]} dxe5 {[%clk 01:37:37]} {[%emt
00:00:06]} 11. Nf3 {[%clk 01:17:08]} {[%emt 00:02:53]} Qe7 {[%clk 01:34:40]}
{[%emt 00:03:26]} 12. Bc4 {[%clk 01:11:01]} {[%emt 00:06:38]} b6 {[%clk
01:32:25]} {[%emt 00:02:44]} 13. a4 {[%clk 00:58:41]} {[%emt 00:12:50]} Bb7
{[%clk 01:30:55]} {[%emt 00:02:00]} 14. Qc2 {[%clk 00:58:54]} {[%emt 00:00:17]}
Rfd8 {[%clk 01:28:15]} {[%emt 00:03:10]} 15. h3 {[%clk 00:52:11]} {[%emt
00:07:13]} a6 {[%clk 01:26:06]} {[%emt 00:02:38]} 16. b4 {[%clk 00:47:23]}
{[%emt 00:05:18]} Kh7 {[%clk 01:19:15]} {[%emt 00:07:21]} 17. Ba3 {[%clk
00:40:31]} {[%emt 00:07:23]} Qe8 {[%clk 01:12:35]} {[%emt 00:07:09]} 18. b5
{[%clk 00:34:12]} {[%emt 00:06:50]} axb5 {[%clk 01:04:47]} {[%emt 00:08:18]} 19.
axb5 {[%clk 00:34:03]} {[%emt 00:00:40]} Rd7 {[%clk 00:59:28]} {[%emt
00:05:49]} 20. Nd2 {[%clk 00:27:28]} {[%emt 00:07:05]} Qd8 {[%clk 00:56:46]}
{[%emt 00:03:12]} 21. Nf1 {[%clk 00:23:41]} {[%emt 00:04:17]} Bf8 {[%clk
00:42:10]} {[%emt 00:15:06]} 22. Bxf8 {[%clk 00:12:48]} {[%emt 00:11:24]} Rxa1
{[%clk 00:42:25]} {[%emt 00:00:15]} 23. Rxa1 {[%clk 00:13:17]} {[%emt
00:00:01]} Qxf8 {[%clk 00:42:32]} {[%emt 00:00:22]} 24. Ng3 {[%clk 00:08:54]}
{[%emt 00:04:54]} h5 {[%clk 00:41:03]} {[%emt 00:01:59]} 25. Ra7 {[%clk
00:04:52]} {[%emt 00:04:32]} h4 {[%clk 00:37:53]} {[%emt 00:03:40]} 26. Rxb7
{[%clk 00:01:36]} {[%emt 00:03:46]} hxg3 {[%clk 00:37:50]} {[%emt 00:00:33]} 27.
Ra7 {[%clk 00:00:42]} {[%emt 00:01:24]} Qc5 {[%clk 00:37:59]} {[%emt 00:00:20]}
0-1